fUST/lending_fUST_20250903
["ID","MTS","AMOUNT","RATE_DAILY","PERIOD"]
[383143397,1756865442999,-489.17,0.00013698,2]
[383143399,1756865443009,-770.75,0.00013698,2]
[383143401,1756865443018,-482.66034659,0.00013698,2]
[383143403,1756865443027,-482.26385144,0.00013698,2]
[383143405,1756865443037,-486.22492575,0.00013698,2]
[383143407,1756865443047,-484.90761471,0.00013698,2]
[383143409,1756865443057,-480.0,0.00013698,2]
[383143411,1756865443066,-488.1732943,0.00013698,2]
[383143413,1756865443076,-480.0,0.00013698,2]
[383143415,1756865443085,-481.71034426,0.00013698,2]
[383143417,1756865443094,-484.19106515,0.00013698,2]
[383143419,1756865443104,-480.0,0.00013698,2]
[383143421,1756865443113,-482.00892392,0.00013698,2]
[383143422,1756865443122,-480.0,0.00013698,2]
[383143424,1756865443133,-1454.66,0.00013698,2]
[383143426,1756865443143,-328.26134625,0.00013698,2]
[383143428,1756865443152,-411.27407429,0.00013698,2]
[383143430,1756865443163,-480.0,0.00013698,2]
[383143432,1756865443173,-549.75,0.00013698,2]
[383143434,1756865443184,-482.54798358,0.00013698,2]
[383143436,1756865443194,-480.0,0.00013698,2]
[383143438,1756865443203,-483.32156602,0.00013698,2]
[383143440,1756865443212,-480.0,0.00013698,2]
[383143442,1756865443221,-480.0,0.00013698,2]
[383143444,1756865443231,-480.0,0.00013698,2]
[383143446,1756865443240,-496.34221573,0.00013698,2]
[383143448,1756865443249,-612.90199007,0.00013698,2]
[383143450,1756865443258,-480.0,0.00013698,2]
[383143452,1756865443268,-480.0,0.00013698,2]
[383143454,1756865443277,-480.0,0.00013698,2]
[383143456,1756865443287,-480.0,0.00013698,2]
[383143458,1756865443296,-480.0,0.00013698,2]
[383143460,1756865443306,-480.0,0.00013698,2]
[383143462,1756865443316,-480.0,0.00013698,2]
[383143464,1756865443325,-480.0,0.00013698,2]
[383143466,1756865443335,-477.10544671,0.00013698,2]
[383143468,1756865443344,-480.0,0.00013698,2]
[383143470,1756865443355,-480.0,0.00013698,2]
[383143472,1756865443364,-482.23792737,0.00013698,2]
[383143474,1756865443376,-480.0,0.00013698,2]
[383143476,1756865443385,-549.13,0.00013698,2]
[383143478,1756865443395,-995.94,0.00013698,2]
[383143480,1756865443404,-480.0,0.00013698,2]
[383143482,1756865443414,-480.0,0.00013698,2]
[383143484,1756865443423,-2322.08,0.00013698,2]
[383143486,1756865443437,-480.0,0.00013698,2]
[383143488,1756865443447,-483.73814685,0.00013698,2]
[383143490,1756865443456,-557.2682504,0.00013698,2]
[383143492,1756865443466,-847.65,0.00013698,2]
[383143494,1756865443475,-480.0,0.00013698,2]
[383143496,1756865443485,-483.65946977,0.00013698,2]
[383143498,1756865443495,-480.0,0.00013698,2]
[383143500,1756865443515,-480.0,0.00013698,2]
[383143502,1756865443533,-746.5,0.00013698,2]
[383143504,1756865443542,-480.0,0.00013698,2]
[383143506,1756865443552,-480.0,0.00013698,2]
[383143508,1756865443561,-480.0,0.00013698,2]
[383143510,1756865443571,-1385.56,0.00013698,2]
[383143512,1756865443580,-484.3206302,0.00013698,2]
[383143514,1756865443589,-480.0,0.00013698,2]
[383143516,1756865443599,-484.18620917,0.00013698,2]
[383143518,1756865443608,-480.0,0.00013698,2]
[383143520,1756865443618,-480.0,0.00013698,2]
[383143522,1756865443627,-483.19625541,0.00013698,2]
[383143524,1756865443637,-484.86472151,0.00013698,2]
[383143526,1756865443646,-484.10302722,0.00013698,2]
[383143528,1756865443655,-935.27,0.00013698,2]
[383143530,1756865443665,-1505.08,0.00013698,2]
[383143533,1756865443675,-480.0,0.00013698,2]
[383143535,1756865443686,-3081.98,0.00013698,2]
[383143537,1756865443696,-480.0,0.00013698,2]
[383143539,1756865443706,-480.0,0.00013698,2]
[383143541,1756865443715,-483.23945062,0.00013698,2]
[383143542,1756865443724,-483.3876806,0.00013698,2]
[383143544,1756865443733,-481.6152158,0.00013698,2]
[383143546,1756865443743,-483.04192798,0.00013698,2]
[383143548,1756865443752,-1326.09,0.00013698,2]
[383143550,1756865443762,-482.87004304,0.00013698,2]
[383143552,1756865443771,-480.0,0.00013698,2]
[383143554,1756865443781,-482.28025007,0.00013698,2]
[383143556,1756865443790,-480.0,0.00013698,2]
[383143558,1756865443800,-480.0,0.00013698,2]
[383143560,1756865443810,-485.17979288,0.00013698,2]
[383143562,1756865443819,-480.0,0.00013698,2]
[383143564,1756865443829,-480.0,0.00013698,2]
[383143566,1756865443840,-151.0,0.00013698,2]
[383143568,1756865443850,-480.0,0.00013698,2]
[383143570,1756865443861,-487.97564075,0.00013698,2]
[383143572,1756865443870,-483.29408813,0.00013698,2]
[383143574,1756865443880,-154.484397,0.00013698,2]
[383143576,1756865443889,-483.08670402,0.00013698,2]
[383143578,1756865443899,-752.1,0.00013698,2]
[383143580,1756865443909,-480.0,0.00013698,2]
[383143582,1756865443919,-339.19723525,0.00013698,2]
[383143584,1756865443930,-480.0,0.00013698,2]
[383143586,1756865443940,-480.0,0.00013698,2]
[383143588,1756865443950,-480.0,0.00013698,2]
[383143590,1756865443960,-480.0,0.00013698,2]
[383143592,1756865443969,-481.96661301,0.00013698,2]
[383143594,1756865443979,-480.0,0.00013698,2]
[383143596,1756865443988,-513.49872216,0.00013698,2]
[383143598,1756865443998,-152.658463,0.00013699,2]
[383143600,1756865444008,-151.0,0.00013699,2]
[383143602,1756865444018,-153.295934,0.00013699,2]
[383143604,1756865444027,-764.648827,0.00013699,2]
[383143606,1756865444037,-633.0,0.00013831,2]
[383143608,1756865444047,-896.787,0.00013831,2]
[383143610,1756865444056,-2061.62123755,0.00013872,2]
[383143612,1756865444065,-160.0,0.00013918,2]
[383143614,1756865444075,-160.0,0.00013918,2]
[383143616,1756865444084,-11371.27183129,0.00013918,2]
[383143618,1756865444093,-160.0,0.00013918,2]
[383143620,1756865444103,-530.32150586,0.00013918,2]
[383143623,1756865444113,-160.0,0.00013918,2]
[383143625,1756865444123,-417.15472785,0.00013918,2]
[383143627,1756865444132,-846.3157213,0.00013918,2]
[383143628,1756865444141,-160.0,0.00013918,2]
[383143630,1756865444151,-208.33333333,0.00013918,2]
[383143633,1756865444162,-160.0,0.00013918,2]
[383143634,1756865444171,-217.50314573,0.00013918,2]
[383143636,1756865444181,-232.90165665,0.00013918,2]
[383143639,1756865444191,-3081.2637113,0.00013934,2]
[383143641,1756865444201,-2697.6735661,0.00013934,2]
[383143643,1756865444212,-153.453684,0.00013968,2]
[383143645,1756865444221,-206.75723664,0.00013972,2]
[383143647,1756865444231,-480.0,0.00013972,2]
[383143649,1756865444240,-151.961771,0.00013972,2]
[383143651,1756865444250,-482.75648786,0.00013972,2]
[383143653,1756865444259,-152.54779,0.00013972,2]
[383143655,1756865444269,-480.0,0.00013972,2]
[383143657,1756865444279,-224.39274361,0.00013972,2]
[383143659,1756865444289,-480.0,0.00013972,2]
[383143661,1756865444299,-585.17,0.00013972,2]
[383143663,1756865444309,-480.0,0.00013972,2]
[383143665,1756865444319,-184.62036426,0.00013972,2]
[383143667,1756865444328,-480.0,0.00013972,2]
[383143669,1756865444338,-480.0,0.00013972,2]
[383143671,1756865444347,-480.0,0.00013972,2]
[383143673,1756865444356,-480.0,0.00013972,2]
[383143675,1756865444366,-480.0,0.00013972,2]
[383143677,1756865444375,-480.0,0.00013972,2]
[383143679,1756865444385,-480.0,0.00013972,2]
[383143680,1756865444394,-480.0,0.00013972,2]
[383143682,1756865444404,-480.0,0.00013972,2]
[383143685,1756865444414,-480.0,0.00013972,2]
[383143687,1756865444423,-480.0,0.00013972,2]
[383143689,1756865444434,-480.0,0.00013972,2]
[383143691,1756865444443,-480.0,0.00013972,2]
[383143693,1756865444452,-165.34833493,0.00013972,2]
[383143695,1756865444462,-480.0,0.00013972,2]
[383143697,1756865444472,-481.17856374,0.00013972,2]
[383143698,1756865444481,-480.0,0.00013972,2]
[383143700,1756865444491,-480.0,0.00013972,2]
[383143702,1756865444503,-480.0,0.00013972,2]
[383143704,1756865444513,-351.24260148,0.00013972,2]
[383143706,1756865444524,-480.0,0.00013972,2]
[383143708,1756865444534,-480.0,0.00013972,2]
[383143711,1756865444545,-480.0,0.00013972,2]
[383143713,1756865444554,-480.0,0.00013972,2]
[383143715,1756865444565,-480.0,0.00013972,2]
[383143717,1756865444574,-484.59327603,0.00013972,2]
[383143718,1756865444584,-480.0,0.00013972,2]
[383143721,1756865444594,-289.75689065,0.00013972,2]
[383143723,1756865444604,-487.69391648,0.00013972,2]
[383143725,1756865444614,-480.0,0.00013972,2]
[383143727,1756865444624,-485.07060368,0.00013972,2]
[383143729,1756865444633,-480.0,0.00013972,2]
[383143731,1756865444643,-614.24477484,0.00013972,2]
[383143733,1756865444652,-480.0,0.00013972,2]
[383143735,1756865444662,-158.267952,0.00013972,2]
[383143737,1756865444671,-177.57,0.00013972,2]
[383143739,1756865444684,-480.0,0.00013972,2]
[383143741,1756865444694,-477.40295794,0.00013972,2]
[383143743,1756865444703,-480.0,0.00013972,2]
[383143745,1756865444712,-514.46371179,0.00013972,2]
[383143747,1756865444721,-423.7613726,0.00013972,2]
[383143749,1756865444731,-286.24894505,0.00013972,2]
[383143751,1756865444740,-480.0,0.00013972,2]
[383143753,1756865444750,-480.0,0.00013972,2]
[383143755,1756865444759,-485.2958883,0.00013972,2]
[383143757,1756865444768,-480.0,0.00013972,2]
[383143759,1756865444778,-480.0,0.00013972,2]
[383143760,1756865444788,-601.41687502,0.00013972,2]
[383143762,1756865444798,-480.0,0.00013972,2]
[383143764,1756865444808,-480.0,0.00013972,2]
[383143766,1756865444818,-480.0,0.00013972,2]
[383143768,1756865444828,-480.0,0.00013972,2]
[383143770,1756865444838,-480.0,0.00013972,2]
[383143772,1756865444847,-157.42504895,0.00013972,2]
[383143774,1756865444857,-480.0,0.00013972,2]
[383143776,1756865444867,-293.17554813,0.00013972,2]
[383143778,1756865444877,-480.0,0.00013972,2]
[383143780,1756865444886,-480.0,0.00013972,2]
[383143782,1756865444896,-480.0,0.00013972,2]
[383143784,1756865444906,-480.0,0.00013972,2]
[383143786,1756865444915,-480.0,0.00013972,2]
[383143788,1756865444925,-480.0,0.00013972,2]
[383143790,1756865444937,-480.0,0.00013972,2]
[383143792,1756865444946,-480.0,0.00013972,2]
[383143794,1756865444955,-480.0,0.00013972,2]
[383143796,1756865444965,-480.0,0.00013972,2]
[383143798,1756865444974,-869.6,0.00013972,2]
[383143800,1756865444984,-480.0,0.00013972,2]
[383143802,1756865444993,-480.0,0.00013972,2]
[383143804,1756865445003,-480.0,0.00013972,2]
[383143806,1756865445012,-483.82461233,0.00013972,2]
[383143808,1756865445022,-480.0,0.00013972,2]
[383143810,1756865445031,-480.0,0.00013972,2]
[383143812,1756865445041,-480.0,0.00013972,2]
[383143814,1756865445051,-480.0,0.00013972,2]
[383143816,1756865445061,-480.0,0.00013972,2]
[383143818,1756865445071,-480.0,0.00013972,2]
[383143820,1756865445081,-538.80692071,0.00013972,2]
[383143822,1756865445091,-480.0,0.00013972,2]
[383143824,1756865445100,-429.19073761,0.00013972,2]
[383143826,1756865445110,-480.0,0.00013972,2]
[383143828,1756865445119,-485.35385943,0.00013972,2]
[383143830,1756865445129,-480.0,0.00013972,2]
[383143831,1756865445138,-480.0,0.00013972,2]
[383143832,1756865445147,-671.19,0.00013972,2]
[383143833,1756865445156,-480.0,0.00013972,2]
[383143834,1756865445165,-471.55747848,0.00013972,2]
[383143835,1756865445174,-480.0,0.00013972,2]
[383143836,1756865445185,-496.3,0.00013972,2]
[383143837,1756865445194,-480.0,0.00013972,2]
[383143838,1756865445203,-480.0,0.00013972,2]
[383143839,1756865445212,-480.0,0.00013972,2]
[383143840,1756865445220,-480.0,0.00013972,2]
[383143841,1756865445229,-583.04,0.00013972,2]
[383143843,1756865445239,-582.45,0.00013972,2]
[383143845,1756865445248,-480.0,0.00013972,2]
[383143847,1756865445258,-480.0,0.00013972,2]
[383143849,1756865445267,-480.0,0.00013972,2]
[383143851,1756865445276,-480.0,0.00013972,2]
[383143853,1756865445285,-480.0,0.00013972,2]
[383143855,1756865445295,-485.06909025,0.00013972,2]
[383143857,1756865445304,-480.0,0.00013972,2]
[383143859,1756865445313,-480.0,0.00013972,2]
[383143861,1756865445323,-480.0,0.00013972,2]
[383143863,1756865445332,-480.0,0.00013972,2]
[383143865,1756865445341,-480.0,0.00013972,2]
[383143867,1756865445351,-2219.71,0.00013972,2]
[383143869,1756865445360,-480.0,0.00013972,2]
[383143871,1756865445370,-480.0,0.00013972,2]
[383143873,1756865445379,-480.0,0.00013972,2]
[383143875,1756865445388,-480.0,0.00013972,2]
[383143877,1756865445400,-480.0,0.00013972,2]
[383143879,1756865445413,-480.0,0.00013972,2]
[383143881,1756865445423,-480.0,0.00013972,2]
[383143883,1756865445433,-480.0,0.00013972,2]
[383143885,1756865445442,-480.0,0.00013972,2]
[383143887,1756865445451,-1068.01,0.00013972,2]
[383143889,1756865445461,-644.13,0.00013972,2]
[383143891,1756865445471,-489.17,0.00013972,2]
[383143893,1756865445480,-770.75,0.00013972,2]
[383143895,1756865445489,-480.0,0.00013972,2]
[383143908,1756865445600,-480.0,0.00013972,2]
[383143911,1756865445626,-480.0,0.00013972,2]
[383143913,1756865445635,-480.0,0.00013972,2]
[383143915,1756865445645,-1454.66,0.00013972,2]
[383143917,1756865445654,-480.0,0.00013972,2]
[383143919,1756865445664,-549.75,0.00013972,2]
[383143921,1756865445673,-480.0,0.00013972,2]
[383143923,1756865445683,-370.1859701,0.00013972,2]
[383143925,1756865445692,-428.25225814,0.00013972,2]
[383143927,1756865445702,-480.0,0.00013972,2]
[383143929,1756865445711,-480.0,0.00013972,2]
[383143931,1756865445721,-480.0,0.00013972,2]
[383143933,1756865445731,-480.0,0.00013972,2]
[383143935,1756865445740,-480.0,0.00013972,2]
[383143937,1756865445749,-480.0,0.00013972,2]
[383143939,1756865445759,-480.0,0.00013972,2]
[383143941,1756865445769,-480.0,0.00013972,2]
[383143943,1756865445778,-480.0,0.00013972,2]
[383143945,1756865445787,-480.0,0.00013972,2]
[383143947,1756865445798,-480.0,0.00013972,2]
[383143949,1756865445807,-480.0,0.00013972,2]
[383143951,1756865445816,-995.94,0.00013972,2]
[383143953,1756865445826,-480.0,0.00013972,2]
[383143955,1756865445835,-480.0,0.00013972,2]
[383143957,1756865445846,-2322.08,0.00013972,2]
[383143959,1756865445855,-847.65,0.00013972,2]
[383143961,1756865445864,-480.0,0.00013972,2]
[383143963,1756865445874,-480.0,0.00013972,2]
[383143965,1756865445883,-480.0,0.00013972,2]
[383143967,1756865445893,-746.5,0.00013972,2]
[383143969,1756865445902,-480.0,0.00013972,2]
[383143971,1756865445913,-480.0,0.00013972,2]
[383143973,1756865445923,-480.0,0.00013972,2]
[383143975,1756865445933,-1385.56,0.00013972,2]
[383143977,1756865445942,-399.16287933,0.00013972,2]
[383143979,1756865445952,-480.0,0.00013972,2]
[383143981,1756865445961,-480.0,0.00013972,2]
[383143983,1756865445971,-935.27,0.00013972,2]
[383143985,1756865445980,-1505.08,0.00013972,2]
[383143987,1756865445990,-480.0,0.00013972,2]
[383143989,1756865446000,-3081.98,0.00013972,2]
[383143991,1756865446009,-480.0,0.00013972,2]
[383143993,1756865446020,-480.0,0.00013972,2]
[383143995,1756865446030,-1326.09,0.00013972,2]
[383143997,1756865446040,-480.0,0.00013972,2]
[383143999,1756865446049,-480.0,0.00013972,2]
[383144001,1756865446059,-480.0,0.00013972,2]
[383144003,1756865446068,-480.0,0.00013972,2]
[383144005,1756865446078,-480.0,0.00013972,2]
[383144007,1756865446087,-480.0,0.00013972,2]
[383144009,1756865446096,-752.1,0.00013972,2]
[383144011,1756865446106,-487.90670068,0.00013972,2]
[383144013,1756865446115,-480.0,0.00013972,2]
[383144015,1756865446124,-480.0,0.00013972,2]
[383144017,1756865446134,-480.0,0.00013972,2]
[383144019,1756865446144,-486.20091695,0.00013972,2]
[383144021,1756865446153,-501.19283219,0.00013973,2]
[383144023,1756865446163,-500.0,0.00013973,2]
[383144025,1756865446172,-501.45864334,0.00013973,2]
[383144027,1756865446182,-500.0,0.00013973,2]
[383144029,1756865446192,-503.71744996,0.00013973,2]
[383144031,1756865446202,-504.02130842,0.00013973,2]
[383144033,1756865446211,-500.0,0.00013973,2]
[383144035,1756865446220,-168.0,0.00014022,2]
[383144037,1756865446230,-168.0,0.00014182,2]
[383144039,1756865446240,-168.0,0.00014217,2]
[383144041,1756865446250,-151.76623521,0.00014246,2]
[383144044,1756865446260,-472.83262724,0.00014246,2]
[383144046,1756865446270,-480.0,0.00014246,2]
[383144048,1756865446279,-480.0,0.00014246,2]
[383144050,1756865446290,-585.17,0.00014246,2]
[383144052,1756865446299,-196.38139629,0.00014246,2]
[383144054,1756865446309,-480.0,0.00014246,2]
[383144056,1756865446318,-201.44453058,0.00014246,2]
[383144058,1756865446328,-483.43150584,0.00014246,2]
[383144060,1756865446338,-483.01994733,0.00014246,2]
[383144062,1756865446347,-484.5112355,0.00014246,2]
[383144064,1756865446356,-480.0,0.00014246,2]
[383144066,1756865446365,-583.58074553,0.00014246,2]
[383144068,1756865446375,-480.0,0.00014246,2]
[383144070,1756865446384,-480.0,0.00014246,2]
[383144072,1756865446394,-486.66925585,0.00014246,2]
[383144074,1756865446404,-186.226393,0.00014246,2]
[383144076,1756865446413,-483.24081576,0.00014246,2]
[383144078,1756865446422,-485.8674501,0.00014246,2]
[383144080,1756865446435,-484.0484773,0.00014246,2]
[383144082,1756865446444,-480.0,0.00014246,2]
[383144084,1756865446454,-480.0,0.00014246,2]
[383144086,1756865446463,-485.48523707,0.00014246,2]
[383144088,1756865446473,-480.0,0.00014246,2]
[383144090,1756865446481,-480.0,0.00014246,2]
[383144092,1756865446491,-480.0,0.00014246,2]
[383144094,1756865446503,-480.0,0.00014246,2]
[383144096,1756865446512,-480.0,0.00014246,2]
[383144098,1756865446522,-486.43912263,0.00014246,2]
[383144100,1756865446533,-486.51900639,0.00014246,2]
[383144102,1756865446542,-480.0,0.00014246,2]
[383144104,1756865446552,-480.0,0.00014246,2]
[383144105,1756865446561,-480.0,0.00014246,2]
[383144107,1756865446571,-518.80062163,0.00014246,2]
[383144109,1756865446580,-480.0,0.00014246,2]
[383144111,1756865446590,-480.0,0.00014246,2]
[383144113,1756865446602,-480.0,0.00014246,2]
[383144115,1756865446612,-480.0,0.00014246,2]
[383144117,1756865446621,-417.37060898,0.00014246,2]
[383144119,1756865446632,-480.0,0.00014246,2]
[383144121,1756865446641,-162.06523108,0.00014246,2]
[383144123,1756865446651,-486.30486026,0.00014246,2]
[383144125,1756865446661,-480.0,0.00014246,2]
[383144127,1756865446670,-311.58799659,0.00014246,2]
[383144129,1756865446680,-178.68629518,0.00014246,2]
[383144131,1756865446689,-595.2119728,0.00014246,2]
[383144133,1756865446699,-487.2696627,0.00014246,2]
[383144135,1756865446709,-481.38064937,0.00014246,2]
[383144137,1756865446718,-480.0,0.00014246,2]
[383144139,1756865446727,-480.0,0.00014246,2]
[383144142,1756865446737,-151.0,0.00014246,2]
[383144143,1756865446747,-480.0,0.00014246,2]
[383144145,1756865446758,-182.41528196,0.00014246,2]
[383144147,1756865446768,-480.0,0.00014246,2]
[383144150,1756865446777,-485.59191821,0.00014246,2]
[383144152,1756865446787,-869.6,0.00014246,2]
[383144154,1756865446796,-480.0,0.00014246,2]
[383144156,1756865446806,-480.0,0.00014246,2]
[383144158,1756865446815,-480.0,0.00014246,2]
[383144160,1756865446830,-307.71483272,0.00014246,2]
[383144162,1756865446848,-480.0,0.00014246,2]
[383144164,1756865446857,-480.0,0.00014246,2]
[383144166,1756865446866,-480.0,0.00014246,2]
[383144168,1756865446876,-552.35533337,0.00014246,2]
[383144170,1756865446885,-480.0,0.00014246,2]
[383144172,1756865446894,-480.0,0.00014246,2]
[383144174,1756865446903,-480.0,0.00014246,2]
[383144176,1756865446913,-480.0,0.00014246,2]
[383144178,1756865446922,-480.0,0.00014246,2]
[383144179,1756865446931,-671.19,0.00014246,2]
[383144182,1756865446940,-480.0,0.00014246,2]
[383144184,1756865446950,-480.0,0.00014246,2]
[383144185,1756865446959,-496.3,0.00014246,2]
[383144187,1756865446968,-485.6901293,0.00014246,2]
[383144189,1756865446978,-482.72240517,0.00014246,2]
[383144192,1756865446987,-423.33668621,0.00014246,2]
[383144193,1756865446996,-480.0,0.00014246,2]
[383144196,1756865447006,-583.04,0.00014246,2]
[383144198,1756865447016,-480.0,0.00014246,2]
[383144200,1756865447025,-582.45,0.00014246,2]
[383144202,1756865447034,-480.0,0.00014246,2]
[383144204,1756865447043,-480.0,0.00014246,2]
[383144206,1756865447052,-485.70613142,0.00014246,2]
[383144208,1756865447062,-485.58899757,0.00014246,2]
[383144210,1756865447071,-480.0,0.00014246,2]
[383144212,1756865447080,-480.0,0.00014246,2]
[383144214,1756865447089,-480.0,0.00014246,2]
[383144216,1756865447098,-480.0,0.00014246,2]
[383144217,1756865447107,-484.6722112,0.00014246,2]
[383144219,1756865447117,-2219.71,0.00014246,2]
[383144222,1756865447126,-480.0,0.00014246,2]
[383144224,1756865447136,-622.62826755,0.00014246,2]
[383144226,1756865447146,-508.4988833,0.00014246,2]
[383144228,1756865447155,-480.0,0.00014246,2]
[383144230,1756865447165,-480.0,0.00014246,2]
[383144232,1756865447174,-480.0,0.00014246,2]
[383144234,1756865447185,-480.0,0.00014246,2]
[383144236,1756865447194,-480.0,0.00014246,2]
[383144238,1756865447204,-480.0,0.00014246,2]
[383144240,1756865447213,-1068.01,0.00014246,2]
[383144242,1756865447222,-151.28254591,0.00014246,2]
[383144244,1756865447231,-151.0,0.00014246,2]
[383144246,1756865447240,-198.34418838,0.00014246,2]
[383144248,1756865447249,-152.15040386,0.00014246,2]
[383144250,1756865447259,-644.13,0.00014246,2]
[383144252,1756865447268,-151.0,0.00014246,2]
[383144254,1756865447277,-489.17,0.00014246,2]
[383144256,1756865447287,-770.75,0.00014246,2]
[383144258,1756865447296,-151.66224364,0.00014246,2]
[383144260,1756865447305,-500.0,0.00014246,2]
[383144262,1756865447314,-151.0,0.00014246,2]
[383144264,1756865447323,-151.68053426,0.00014246,2]
[383144266,1756865447332,-198.35506228,0.00014246,2]
[383144268,1756865447341,-151.50587669,0.00014246,2]
[383144270,1756865447351,-199.44764227,0.00014246,2]
[383144272,1756865447360,-480.0,0.00014246,2]
[383144274,1756865447370,-480.0,0.00014246,2]
[383144276,1756865447380,-480.0,0.00014246,2]
[383144278,1756865447389,-480.0,0.00014246,2]
[383144280,1756865447398,-1454.66,0.00014246,2]
[383144282,1756865447408,-480.0,0.00014246,2]
[383144284,1756865447418,-549.75,0.00014246,2]
[383144286,1756865447427,-480.0,0.00014246,2]
[383144288,1756865447439,-480.0,0.00014246,2]
[383144290,1756865447448,-480.0,0.00014246,2]
[383144292,1756865447457,-480.0,0.00014246,2]
[383144294,1756865447467,-480.0,0.00014246,2]
[383144297,1756865447477,-572.65922626,0.00014246,2]
[383144299,1756865447486,-488.03472588,0.00014246,2]
[383144301,1756865447496,-480.0,0.00014246,2]
[383144302,1756865447509,-480.0,0.00014246,2]
[383144304,1756865447519,-480.0,0.00014246,2]
[383144307,1756865447529,-480.0,0.00014246,2]
[383144309,1756865447538,-152.0649733,0.00014246,2]
[383144311,1756865447548,-214.3270187,0.00014246,2]
[383144313,1756865447557,-217.13316619,0.00014246,2]
[383144315,1756865447567,-480.0,0.00014246,2]
[383144317,1756865447577,-995.94,0.00014246,2]
[383144318,1756865447588,-480.0,0.00014246,2]
[383144321,1756865447598,-485.71887732,0.00014246,2]
[383144323,1756865447607,-2322.08,0.00014246,2]
[383144324,1756865447616,-847.65,0.00014246,2]
[383144327,1756865447626,-480.0,0.00014246,2]
[383144329,1756865447636,-480.0,0.00014246,2]
[383144331,1756865447646,-490.10226814,0.00014246,2]
[383144333,1756865447655,-746.5,0.00014246,2]
[383144335,1756865447664,-480.0,0.00014246,2]
[383144336,1756865447673,-480.0,0.00014246,2]
[383144338,1756865447684,-566.2969274,0.00014246,2]
[383144341,1756865447693,-1385.56,0.00014246,2]
[383144343,1756865447702,-480.0,0.00014246,2]
[383144345,1756865447712,-480.0,0.00014246,2]
[383144347,1756865447722,-935.27,0.00014246,2]
[383144349,1756865447731,-1505.08,0.00014246,2]
[383144351,1756865447740,-480.0,0.00014246,2]
[383144353,1756865447756,-3081.98,0.00014246,2]
[383144355,1756865447765,-480.0,0.00014246,2]
[383144357,1756865447775,-480.0,0.00014246,2]
[383144359,1756865447784,-1326.09,0.00014246,2]
[383144361,1756865447793,-480.0,0.00014246,2]
[383144363,1756865447804,-480.0,0.00014246,2]
[383144365,1756865447814,-480.0,0.00014246,2]
[383144367,1756865447824,-480.0,0.00014246,2]
[383144369,1756865447834,-480.0,0.00014246,2]
[383144371,1756865447844,-480.0,0.00014246,2]
[383144373,1756865447853,-752.1,0.00014246,2]
[383144375,1756865447863,-480.0,0.00014246,2]
[383144377,1756865447872,-480.0,0.00014246,2]
[383144379,1756865447881,-480.0,0.00014246,2]
[383144381,1756865447891,-168.0,0.00014322,2]
[383144383,1756865447900,-578.0576773,0.0001441,2]
[383144385,1756865447909,-151.0,0.0001452,2]
[383144387,1756865447918,-151.0,0.0001452,2]
[383144389,1756865447927,-151.0,0.0001452,2]
[383144391,1756865447938,-500.0,0.0001452,2]
[383144393,1756865447947,-151.0,0.0001452,2]
[383144395,1756865447956,-480.0,0.0001452,2]
[383144397,1756865447965,-201.69151919,0.0001452,2]